bitfinex-derivatives/quotes_SOLF0:USTF0_20260304
["timestamp","ask_amount","ask_price","bid_price","bid_amount"]
[1772650400887,3.80976236,92.431,92.366,13.65128117]
[1772650401191,3.80976236,92.431,92.356,9.741]
[1772650401397,3.80976236,92.431,92.341,3.91128117]
[1772650401989,3.80976236,92.428,92.367,3.91128117]
[1772650402593,3.80976236,92.443,92.385,3.91128117]
[1772650403189,3.80976236,92.47,92.396,3.91128117]
[1772650403590,3.80976236,92.47,92.342,19.485]
[1772650403591,3.80976236,92.446,92.38,13.64928117]
[1772650403890,3.80976236,92.446,92.342,19.485]
[1772650403891,3.80976236,92.446,92.381,3.91128117]
[1772650404089,3.80976236,92.478,92.381,3.91128117]
[1772650404291,3.80976236,92.478,92.412,3.91128117]
[1772650404489,3.80976236,92.478,92.35,151.543]
[1772650404490,3.80976236,92.478,92.396,3.91128117]
[1772650404988,3.80976236,92.463,92.396,3.91128117]
[1772650405388,3.80976236,92.495,92.396,3.91128117]
[1772650405997,9.728,92.483,92.408,9.735]
[1772650406296,10.02538376,92.496,92.409,3.95888883]
[1772650406297,3.76938726,92.482,92.409,3.95888883]
[1772650406689,3.76938726,92.468,92.409,3.95888883]
[1772650407295,3.76938726,92.468,92.329,3.95888883]
[1772650407789,3.76938726,92.452,92.375,3.95888883]
[1772650407992,3.76938726,92.452,92.336,3.95888883]
[1772650408400,3.76938726,92.417,92.338,3.95888883]
[1772650408790,3.76938726,92.417,92.339,3.95888883]
[1772650409403,3.76938726,92.401,92.321,3.95888883]
[1772650410202,3.76938726,92.401,92.334,3.95888883]
[1772650410496,3.76938726,92.417,92.334,3.95888883]
[1772650410801,3.76938726,92.417,92.351,9.741]
[1772650411202,3.76938726,92.468,92.334,3.95888883]
[1772650411503,0.16938726,92.465,92.376,3.95888883]
[1772650412303,10.02538376,92.496,92.376,3.95888883]
[1772650412502,151.312,92.492,92.31,3.95888883]
[1772650412692,9.733,92.429,92.358,3.95888883]
[1772650413304,9.734,92.419,92.358,3.95888883]
[1772650413505,3.76938726,92.418,92.358,3.95888883]
[1772650414197,9.735,92.413,92.358,3.95888883]
[1772650415907,151.348,92.47,92.342,13.70088883]
[1772650415908,3.76938726,92.41,92.342,13.70088883]
[1772650417107,13.50438726,92.409,92.347,9.742]
[1772650417507,3.76938726,92.409,92.35,3.95888883]
[1772650417804,9.734,92.42,92.35,3.95888883]
[1772650418103,19.458,92.473,92.35,3.95888883]
[1772650418104,13.50438726,92.413,92.35,3.95888883]
[1772650419604,3.76938726,92.41,92.35,3.95888883]
[1772650420501,3.76938726,92.41,92.352,3.95888883]
[1772650421107,9.736,92.4,92.352,3.95888883]
[1772650421410,151.359,92.463,92.301,3.95888883]
[1772650421411,3.76938726,92.399,92.301,3.95888883]
[1772650421804,9.738,92.385,92.323,3.95888883]
[1772650422007,3.76938726,92.384,92.323,3.95888883]
[1772650422408,9.739,92.379,92.323,3.95888883]
[1772650422610,3.76938726,92.378,92.323,3.95888883]
[1772650422812,3.76938726,92.378,92.288,3.95888883]
[1772650423811,9.739,92.376,92.311,3.95888883]
[1772650424212,9.739,92.376,92.315,3.95888883]
[1772650424607,19.469,92.422,92.298,3.95888883]
[1772650424608,3.76938726,92.367,92.298,3.95888883]
[1772650425509,9.742,92.346,92.298,3.95888883]
[1772650425908,3.76938726,92.345,92.281,3.95888883]
[1772650426114,9.744,92.331,92.281,3.95888883]
[1772650427012,9.743,92.34,92.281,3.95888883]
[1772650427212,3.76938726,92.345,92.283,3.95888883]
[1772650427516,3.76938726,92.343,92.283,3.95888883]
[1772650429613,3.63868202,92.338,92.283,3.95888883]
[1772650429813,3.63868202,92.396,92.286,3.61398849]
[1772650430611,3.63868202,92.396,92.244,19.506]
[1772650430612,3.63868202,92.355,92.295,3.61398849]
[1772650431516,3.63868202,92.346,92.295,3.61398849]
[1772650432517,9.743,92.342,92.295,3.61398849]
[1772650433214,9.743,92.335,92.295,3.61398849]
[1772650435715,3.63868202,92.335,92.257,3.61398849]
[1772650436909,9.745,92.318,92.264,3.61398849]
[1772650437410,3.63868202,92.318,92.264,3.61398849]
[1772650438117,9.745,92.319,92.264,3.61398849]
[1772650438318,3.63868202,92.333,92.264,3.61398849]
[1772650438620,9.745,92.321,92.266,3.61398849]
[1772650440313,3.63868202,92.318,92.251,3.61398849]
[1772650441418,3.63868202,92.318,92.195,151.798]
[1772650441419,3.63868202,92.318,92.267,3.61398849]
[1772650442316,9.746,92.31,92.267,3.61398849]
[1772650442620,3.63868202,92.318,92.251,3.61398849]
[1772650443422,3.63868202,92.3,92.207,3.61398849]
[1772650444423,3.63868202,92.3,92.227,3.61398849]
[1772650445019,3.63868202,92.293,92.227,3.61398849]
[1772650445221,3.63868202,92.293,92.211,3.61398849]
[1772650445923,3.63868202,92.277,92.227,9.755]
[1772650446323,3.63868202,92.277,92.227,13.36898849]
[1772650446519,3.63868202,92.296,92.231,3.61398849]
[1772650447424,3.63868202,92.296,92.249,9.752]
[1772650450824,3.63868202,92.291,92.241,9.753]
[1772650451219,3.63868202,92.291,92.229,3.61398849]
[1772650451616,3.63868202,92.276,92.229,3.61398849]
[1772650451829,19.488,92.33,92.229,3.61398849]
[1772650451830,3.63868202,92.292,92.229,3.61398849]
[1772650452628,9.749,92.283,92.237,9.753]
[1772650453018,9.749,92.283,92.229,3.61398849]
[1772650453429,3.63868202,92.308,92.229,3.61398849]
[1772650453625,3.63868202,92.353,92.229,3.61398849]
[1772650453926,9.748,92.291,92.239,3.61398849]
[1772650454822,9.749,92.284,92.239,3.61398849]
[1772650455123,3.63868202,92.284,92.179,3.61398849]
[1772650455318,3.63868202,92.284,92.125,151.913]
[1772650455319,151.53,92.359,92.192,3.61398849]
[1772650455320,3.63868202,92.258,92.192,3.61398849]
[1772650455519,3.63868202,92.322,92.192,3.61398849]
[1772650455719,155.24468202,92.312,92.192,3.61398849]
[1772650455926,9.753,92.247,92.192,3.61398849]
[1772650456421,9.753,92.247,92.194,3.61398849]
[1772650458827,9.752,92.256,92.194,3.61398849]
[1772650459026,3.72339123,92.255,92.194,3.61398849]
[1772650459732,9.753,92.24,92.194,3.61398849]
[1772650460128,3.72339123,92.255,92.194,3.61398849]
[1772650460631,9.752,92.249,92.194,3.61398849]
[1772650461831,3.72339123,92.248,92.194,3.61398849]
[1772650462423,9.753,92.244,92.194,3.61398849]
[1772650463534,9.754,92.236,92.194,3.61398849]
[1772650463831,9.754,92.236,92.137,19.529]
[1772650463832,3.72339123,92.235,92.176,3.71362046]
[1772650464032,3.72339123,92.235,92.132,266.10737953]
[1772650464033,3.72339123,92.235,92.16,3.71362046]
[1772650464534,3.72339123,92.223,92.169,9.761]
[1772650464833,3.72339123,92.223,92.16,3.71362046]
[1772650465232,9.756,92.212,92.16,3.71362046]
[1772650465433,3.72339123,92.223,92.16,3.71362046]
[1772650465833,3.72339123,92.223,92.162,3.93320872]
[1772650467135,3.65425035,92.21,92.147,3.93320872]
[1772650467626,3.65425035,92.21,92.152,3.93320872]
[1772650468233,13.28214329,92.307,92.132,266.10737953]
[1772650468234,3.65425035,92.226,92.163,3.93320872]
[1772650468937,3.65425035,92.226,92.168,3.93320872]
[1772650470232,3.65425035,92.226,92.133,3.93320872]
[1772650470430,3.65425035,92.226,92.156,3.93320872]
[1772650470632,3.65425035,92.243,92.156,3.93320872]
[1772650470940,3.65425035,92.243,92.183,3.93320872]
[1772650472040,3.65425035,92.262,92.204,9.757]
[1772650472539,3.65425035,92.259,92.204,9.757]
[1772650474237,3.65425035,92.259,92.2,3.93320872]
[1772650475138,9.75,92.273,92.2,3.93320872]
[1772650475342,3.65425035,92.272,92.2,3.93320872]
[1772650475933,9.75,92.271,92.221,9.755]
[1772650476140,3.65425035,92.272,92.221,9.755]
[1772650476340,3.65425035,92.288,92.222,3.93320872]
[1772650476645,185.20788459,92.28,92.222,3.93320872]
[1772650476845,3.65425035,92.279,92.222,3.93320872]
[1772650478444,13.40325035,92.279,92.226,9.755]
[1772650479142,3.65425035,92.278,92.226,9.755]
[1772650479547,3.65425035,92.278,92.222,3.93320872]
[1772650479548,3.65425035,92.278,92.234,9.754]
[1772650480050,3.65425035,92.278,92.17,3.93320872]
[1772650481243,13.40625035,92.254,92.201,6.157]
[1772650482353,3.65425035,92.254,92.208,9.757]
[1772650482753,3.65425035,92.254,92.196,3.93320872]
[1772650483148,3.65425035,92.252,92.197,9.758]
[1772650483748,13.40625035,92.251,92.197,9.758]
[1772650483951,3.65425035,92.25,92.197,9.758]
[1772650484147,3.65425035,92.25,92.189,9.759]
[1772650484352,3.65425035,92.238,92.181,3.93320872]
[1772650485153,3.65425035,92.238,92.188,9.759]
[1772650485852,3.65425035,92.238,92.192,3.93320872]
[1772650486049,8.12002021,92.279,92.192,3.93320872]
[1772650486050,3.65425035,92.278,92.192,3.93320872]
[1772650487454,9.752,92.255,92.199,9.758]
[1772650487755,3.65425035,92.255,92.199,9.758]
[1772650488753,4.14919158,92.247,92.147,3.99162392]
[1772650489656,9.754,92.234,92.189,9.759]
[1772650490349,4.14919158,92.24,92.191,9.758]
[1772650490556,4.14919158,92.257,92.192,3.99162392]
[1772650491353,9.752,92.254,92.207,9.757]
[1772650492151,9.752,92.248,92.201,3.99162392]
[1772650492560,9.752,92.256,92.205,3.99162392]
[1772650492758,4.14919158,92.257,92.205,3.99162392]
[1772650493160,4.14919158,92.257,92.21,9.756]
[1772650494169,13.90119158,92.248,92.205,3.99162392]
[1772650494761,4.14919158,92.248,92.206,9.757]
[1772650496764,4.14919158,92.248,92.205,3.99162392]
[1772650498059,9.753,92.247,92.205,3.99162392]
[1772650498755,10.03097128,92.295,92.205,3.99162392]
[1772650498957,4.14919158,92.279,92.205,3.99162392]
[1772650499159,4.14919158,92.294,92.205,3.99162392]
[1772650499364,9.748,92.286,92.228,3.99162392]
[1772650499566,185.70282582,92.28,92.228,3.99162392]
[1772650500255,181.55363424,92.28,92.211,3.99162392]
[1772650500859,4.14919158,92.273,92.211,3.99162392]
[1772650501058,4.14919158,92.273,92.185,3.99162392]
[1772650501261,4.14919158,92.271,92.185,3.99162392]
[1772650501466,4.14919158,92.254,92.187,3.99162392]
[1772650501666,8.13381422,92.278,92.187,3.99162392]
[1772650501667,4.14919158,92.277,92.187,3.99162392]
[1772650502469,9.75,92.274,92.215,3.99162392]
[1772650502966,4.14919158,92.277,92.184,3.99162392]
[1772650504367,4.14919158,92.275,92.215,9.756]
[1772650505369,13.89919158,92.272,92.219,9.755]
[1772650506071,4.14919158,92.271,92.219,9.755]
[1772650506266,4.14919158,92.271,92.219,13.74662392]
[1772650506466,4.14919158,92.271,92.223,3.99162392]
[1772650506667,181.55363424,92.28,92.223,3.99162392]
[1772650506867,181.55363424,92.28,92.234,9.754]
[1772650508071,4.14919158,92.279,92.224,9.755]
[1772650508467,4.14919158,92.279,92.224,13.74662392]
[1772650509374,4.14919158,92.267,92.195,3.99162392]
[1772650510065,4.14919158,92.254,92.195,3.99162392]
[1772650510372,4.14919158,92.254,92.169,3.99162392]
[1772650510568,4.14919158,92.244,92.19,9.759]
[1772650510975,4.14919158,92.244,92.164,19.85855385]
[1772650510976,4.14919158,92.244,92.196,9.758]
[1772650511970,4.14919158,92.242,92.191,3.99162392]
[1772650512171,4.14919158,92.242,92.188,9.759]
[1772650513370,13.90219158,92.241,92.188,9.759]
[1772650513574,4.14919158,92.24,92.188,9.759]
[1772650514578,4.14919158,92.237,92.176,13.75162392]
[1772650515367,9.755,92.227,92.176,13.75162392]
[1772650515969,4.14919158,92.223,92.176,9.76]
[1772650516369,4.14919158,92.223,92.168,9.761]
[1772650516572,13.90419158,92.222,92.168,13.75262392]
[1772650516770,4.14919158,92.221,92.168,13.75262392]
[1772650517271,4.14919158,92.221,92.177,3.99162392]
[1772650517477,4.14919158,92.237,92.177,3.99162392]
[1772650518274,4.14919158,92.236,92.179,9.76]
[1772650518480,4.14919158,92.236,92.18,3.66389035]
[1772650518883,9.754,92.234,92.184,9.759]
[1772650519486,13.64919285,92.234,92.18,3.66389035]
[1772650519682,9.754,92.232,92.18,3.66389035]
[1772650519888,3.89519285,92.232,92.18,3.66389035]
[1772650521083,3.89519285,92.217,92.166,3.66389035]
[1772650522480,19.502,92.264,92.133,3.66389035]
[1772650522481,3.89519285,92.213,92.133,3.66389035]
[1772650524186,9.758,92.198,92.133,3.66389035]
[1772650524591,3.89519285,92.197,92.133,3.66389035]
[1772650525185,13.65319285,92.195,92.134,3.66389035]
[1772650525389,3.89519285,92.194,92.134,3.66389035]
[1772650525893,9.758,92.192,92.141,9.764]
[1772650527388,9.759,92.19,92.141,9.764]
[1772650528388,3.71382291,92.21,92.144,3.59177154]
[1772650528897,3.71382291,92.21,92.167,9.761]
[1772650529293,3.71382291,92.21,92.162,3.59177154]
[1772650529587,3.71382291,92.205,92.124,3.59177154]
[1772650530688,3.71382291,92.205,92.1,19.537]
[1772650530996,3.71382291,92.205,92.101,3.59177154]
[1772650531288,9.758,92.191,92.134,3.59177154]
[1772650531492,3.71382291,92.19,92.134,3.59177154]
[1772650532391,9.759,92.187,92.137,9.764]
[1772650532590,13.47282291,92.187,92.137,9.764]
[1772650533686,3.71382291,92.184,92.134,3.59177154]
[1772650533890,3.71382291,92.184,92.129,9.765]
[1772650534396,3.71382291,92.184,92.084,173.36]
[1772650534397,3.71382291,92.183,92.128,13.35677154]
[1772650535400,9.76,92.179,92.128,13.35677154]
[1772650535793,3.71382291,92.178,92.128,3.59177154]
[1772650536100,3.71382291,92.178,92.12,9.766]
[1772650536298,13.47382291,92.178,92.121,3.59177154]
[1772650537291,8.12629963,92.225,92.136,3.59177154]
[1772650537292,3.71382291,92.194,92.136,3.59177154]
[1772650538696,3.71382291,92.186,92.137,9.764]
[1772650540296,13.47282291,92.184,92.137,9.764]
[1772650540601,3.71382291,92.183,92.137,9.764]
[1772650540798,3.71382291,92.183,92.143,9.763]
[1772650542801,3.71382291,92.182,92.136,3.59177154]
[1772650544204,3.71382291,92.226,92.136,3.59177154]
[1772650545006,19.51,92.228,92.136,3.59177154]
[1772650545007,13.47182291,92.198,92.155,9.762]
[1772650545199,3.71382291,92.198,92.136,3.59177154]
[1772650545401,9.758,92.193,92.138,3.59177154]
[1772650546505,9.758,92.193,92.144,3.59177154]
[1772650547306,9.759,92.187,92.144,3.59177154]
[1772650547599,9.759,92.187,92.096,19.537]
[1772650547600,9.759,92.187,92.146,3.59177154]
[1772650548106,9.76,92.181,92.146,3.59177154]
[1772650549405,9.759,92.188,92.146,3.59177154]
[1772650550706,3.71382291,92.198,92.146,3.59177154]
[1772650551096,9.759,92.19,92.146,3.59177154]
[1772650552100,13.28201477,92.19,92.146,3.59177154]
[1772650553103,3.52301477,92.189,92.146,3.59177154]
[1772650553899,3.52301477,92.177,92.097,3.67848969]
[1772650555503,9.761,92.17,92.121,9.766]
[1772650557008,9.761,92.17,92.121,13.44448969]
[1772650558311,3.52301477,92.177,92.127,3.67848969]
[1772650558509,3.52301477,92.191,92.127,3.67848969]
[1772650559499,10.03097128,92.22,92.141,9.764]
[1772650559500,3.52301477,92.189,92.141,9.764]
[1772650560501,9.759,92.187,92.141,9.764]
[1772650561205,3.52301477,92.183,92.141,9.764]
[1772650563008,3.52301477,92.183,92.14,3.67848969]
[1772650563705,3.52301477,92.183,92.141,3.67848969]
[1772650565011,13.28101477,92.196,92.145,3.67848969]
[1772650566518,13.28101477,92.196,92.152,3.67848969]
[1772650567121,3.52301477,92.196,92.152,3.67848969]
[1772650568025,9.757,92.207,92.152,3.67848969]
[1772650568421,9.757,92.207,92.153,3.67848969]
[1772650568622,13.28001477,92.207,92.153,3.67848969]
[1772650568923,3.52301477,92.206,92.153,3.67848969]
[1772650569626,3.52301477,92.206,92.156,3.67848969]
[1772650570629,3.52301477,92.204,92.156,3.67848969]
[1772650572226,3.52301477,92.201,92.156,3.67848969]
[1772650573622,8.03414792,92.218,92.156,3.67848969]
[1772650573822,3.52301477,92.221,92.179,3.67848969]
[1772650574524,3.52301477,92.221,92.18,9.76]
[1772650574926,3.52301477,92.221,92.179,3.67848969]
[1772650575226,3.52301477,92.219,92.17,13.43948969]
[1772650575431,3.52301477,92.219,92.171,3.67848969]
[1772650575731,3.52301477,92.219,92.172,13.43848969]
[1772650576930,3.52301477,92.219,92.177,9.76]
[1772650577130,3.52301477,92.233,92.178,3.67848969]
[1772650577523,3.52301477,92.259,92.212,3.67848969]
[1772650577926,3.52301477,92.259,92.167,3.67848969]
[1772650578231,3.52301477,92.259,92.198,3.67848969]
[1772650578732,3.88171003,92.278,92.198,3.67848969]
[1772650579230,3.88171003,92.278,92.204,13.47183462]
[1772650579431,3.88171003,92.278,92.205,3.71483462]
[1772650580433,9.751,92.261,92.207,3.71483462]
[1772650580934,19.49,92.322,92.157,19.524]
[1772650580935,3.88171003,92.254,92.191,3.71483462]
[1772650582030,3.88171003,92.251,92.191,3.71483462]
[1772650583437,3.88171003,92.247,92.192,9.758]
[1772650583738,3.88171003,92.247,92.191,3.71483462]
[1772650584439,3.88171003,92.247,92.201,9.757]
[1772650584737,3.88171003,92.247,92.191,3.71483462]
[1772650586437,13.52905451,92.246,92.193,3.62042349]
[1772650587439,13.52905451,92.246,92.198,9.758]
[1772650587639,13.52905451,92.244,92.193,3.62042349]
[1772650587840,3.77605451,92.243,92.193,3.62042349]
[1772650589333,3.77605451,92.297,92.193,3.62042349]
[1772650590143,3.77605451,92.256,92.156,3.62042349]
[1772650590747,3.77605451,92.25,92.159,3.62042349]
[1772650591447,3.77605451,92.25,92.187,3.62042349]
[1772650592641,3.77605451,92.25,92.205,3.62042349]
[1772650593447,3.77605451,92.25,92.206,3.62042349]
[1772650594747,9.752,92.249,92.206,3.62042349]
[1772650598952,3.77605451,92.248,92.206,3.62042349]
[1772650599254,3.77605451,92.246,92.198,13.37842349]
[1772650599455,3.77605451,92.246,92.199,3.62042349]
[1772650599652,3.77605451,92.246,92.201,9.757]
[1772650599854,3.77605451,92.292,92.199,3.62042349]
[1772650600455,3.77605451,92.292,92.225,13.37542349]
[1772650601346,9.75,92.273,92.225,13.37542349]
[1772650601654,3.77605451,92.272,92.225,13.37542349]
[1772650602447,7.96989615,92.313,92.216,9.756]
[1772650602448,3.77605451,92.268,92.216,9.756]
[1772650602648,3.77605451,92.268,92.212,3.62042349]
[1772650603657,3.77605451,92.306,92.224,3.62042349]
[1772650604457,3.77605451,92.283,92.242,9.753]
[1772650605356,9.749,92.282,92.226,9.755]
[1772650605555,9.749,92.282,92.227,3.62042349]
[1772650606456,9.749,92.282,92.231,3.62042349]
[1772650606853,3.77605451,92.275,92.231,3.62042349]
[1772650607452,9.75,92.272,92.231,3.62042349]
[1772650608759,9.749,92.28,92.231,3.62042349]
[1772650609060,9.749,92.28,92.233,3.44330715]
[1772650610060,9.749,92.28,92.235,3.44330715]
[1772650610558,3.71132167,92.29,92.238,3.44330715]
[1772650612461,3.71132167,92.29,92.239,9.753]
[1772650612657,7.98236596,92.318,92.201,3.44330715]
[1772650612658,3.71132167,92.286,92.201,3.44330715]
[1772650613056,3.71132167,92.286,92.222,9.755]
[1772650613352,3.71132167,92.286,92.222,13.19830715]
[1772650614160,3.71132167,92.276,92.229,9.754]
[1772650614458,3.71132167,92.276,92.23,3.44330715]
[1772650615361,3.71132167,92.276,92.231,9.754]
[1772650616654,3.71132167,92.272,92.23,3.44330715]
[1772650616860,3.71132167,92.272,92.222,9.755]
[1772650617755,3.71132167,92.27,92.188,3.44330715]
[1772650618567,9.753,92.243,92.19,3.44330715]
[1772650618867,3.71132167,92.245,92.19,3.44330715]
[1772650620458,3.71132167,92.245,92.192,13.20130715]
[1772650620760,3.71132167,92.245,92.192,3.44330715]
[1772650621465,9.753,92.244,92.199,9.758]
[1772650622275,3.71132167,92.23,92.178,3.44330715]
[1772650622874,3.71132167,92.23,92.101,33.09798187]
[1772650622875,3.71132167,92.22,92.165,3.44330715]
[1772650623564,19.5,92.271,92.156,9.762]
[1772650623565,3.71132167,92.211,92.156,9.762]
[1772650623766,3.71132167,92.211,92.15,3.44330715]
[1772650623968,3.71132167,92.211,92.092,19.538]
[1772650623969,3.71132167,92.211,92.136,3.44330715]
[1772650625372,9.757,92.204,92.138,9.764]
[1772650625573,3.71132167,92.203,92.139,3.44330715]
[1772650625982,3.71132167,92.203,92.152,3.44330715]
[1772650626776,3.71132167,92.203,92.155,3.44330715]
[1772650627378,3.71132167,92.203,92.15,9.763]
[1772650628077,3.71132167,92.203,92.153,9.762]
[1772650628573,3.71132167,92.203,92.153,13.20530715]
[1772650628975,3.71132167,92.203,92.159,9.762]
[1772650630777,3.71132167,92.201,92.14,3.44330715]
[1772650630978,3.71132167,92.201,92.095,3.44330715]
[1772650631981,3.71132167,92.183,92.129,3.44330715]
[1772650632371,3.71132167,92.183,92.135,3.44330715]
[1772650632576,9.758,92.194,92.135,3.44330715]
[1772650633583,9.758,92.194,92.146,3.44330715]
[1772650634076,9.758,92.194,92.147,13.20630715]
[1772650634474,3.71132167,92.2,92.148,3.44330715]
[1772650634772,3.71132167,92.2,92.153,9.762]
[1772650636373,9.758,92.198,92.153,9.762]
[1772650636573,3.71132167,92.197,92.096,3.44330715]
[1772650638183,9.759,92.187,92.127,3.44330715]
[1772650639476,9.759,92.187,92.141,9.764]
[1772650639680,9.759,92.187,92.14,4.03112623]
[1772650639876,3.93264481,92.187,92.14,4.03112623]
[1772650640087,19.51,92.227,92.094,1.88641914]
[1772650640088,3.93264481,92.179,92.11,4.03112623]
[1772650641083,3.93264481,92.179,92.119,4.03112623]
[1772650641585,3.93264481,92.177,92.122,4.03112623]
[1772650642181,3.93264481,92.194,92.138,4.03112623]
[1772650643487,3.93264481,92.193,92.14,4.03112623]
[1772650644387,3.93264481,92.193,92.142,9.764]
[1772650644689,3.93264481,92.193,92.14,4.03112623]
[1772650646486,13.69064481,92.193,92.149,9.763]
[1772650646680,3.93264481,92.193,92.15,3.91112444]
[1772650646993,3.84598663,92.247,92.166,3.91112444]
[1772650648286,9.755,92.224,92.168,3.91112444]
[1772650648689,3.84598663,92.225,92.168,3.91112444]
[1772650650295,9.756,92.217,92.169,9.761]
[1772650650590,9.756,92.217,92.169,13.67212444]
[1772650650998,9.756,92.217,92.17,3.91112444]
[1772650651792,9.756,92.21,92.17,3.91112444]
[1772650654298,9.757,92.207,92.161,9.762]
[1772650654896,3.84598663,92.247,92.162,3.91112444]
[1772650655394,9.756,92.21,92.162,3.91112444]
[1772650655702,3.84598663,92.21,92.162,3.91112444]
[1772650656393,9.757,92.203,92.162,3.91112444]
[1772650657599,3.84598663,92.21,92.164,9.761]
[1772650657798,3.84598663,92.21,92.162,3.91112444]
[1772650658194,9.756,92.212,92.164,3.91112444]
[1772650658394,3.84598663,92.225,92.164,3.91112444]
[1772650658898,3.84598663,92.225,92.098,151.957]
[1772650658899,3.84598663,92.225,92.175,3.91112444]
[1772650660503,9.755,92.222,92.177,3.91112444]
[1772650661502,3.84598663,92.259,92.19,3.91112444]
[1772650662107,3.84598663,92.237,92.19,9.758]
[1772650663304,3.84598663,92.237,92.197,9.758]
[1772650663503,3.84598663,92.286,92.187,3.91112444]
[1772650664805,3.84598663,92.286,92.217,3.91112444]
[1772650665810,3.84598663,92.281,92.217,3.91112444]
[1772650667507,3.84598663,92.277,92.222,9.755]
[1772650668506,3.87693851,92.273,92.222,9.755]
[1772650669704,3.87693851,92.268,92.202,3.83156483]
[1772650671313,3.87693851,92.257,92.203,9.757]
[1772650672014,3.87693851,92.257,92.209,9.757]
[1772650673413,3.87693851,92.257,92.204,3.83156483]
[1772650673414,3.87693851,92.257,92.216,13.58756483]
[1772650674517,9.75,92.268,92.217,3.83156483]
[1772650674717,3.87693851,92.272,92.222,3.83156483]
[1772650676615,3.87693851,92.272,92.223,9.755]
[1772650678714,3.87693851,92.272,92.225,9.755]
[1772650678919,3.87693851,92.272,92.226,3.83156483]
[1772650679521,3.87693851,92.272,92.229,9.754]
[1772650679822,3.87693851,92.272,92.226,3.83156483]
[1772650680216,3.87693851,92.27,92.156,3.83156483]
[1772650680925,3.87693851,92.228,92.165,3.83156483]
[1772650682131,3.87693851,92.221,92.171,9.76]
[1772650683129,3.87693851,92.217,92.165,3.83156483]
[1772650683425,3.87693851,92.269,92.165,3.83156483]
[1772650683925,7.9676695,92.27,92.165,3.83156483]
[1772650684227,164.89714329,92.307,92.165,3.83156483]
[1772650684228,3.87693851,92.227,92.165,3.83156483]
[1772650685316,13.63193851,92.227,92.173,3.83156483]
[1772650686227,9.756,92.219,92.173,3.83156483]
[1772650688025,3.87693851,92.214,92.164,9.761]
[1772650688931,3.87693851,92.212,92.102,3.83156483]
[1772650689827,3.87693851,92.202,92.144,3.83156483]
[1772650691832,9.758,92.194,92.144,3.83156483]
[1772650692332,3.87693851,92.202,92.144,3.83156483]
[1772650693134,3.87693851,92.217,92.144,3.83156483]
[1772650693529,9.756,92.216,92.165,9.761]
[1772650693729,3.87693851,92.215,92.165,9.761]
[1772650694138,3.87693851,92.211,92.163,3.83156483]
[1772650694332,3.87693851,92.211,92.157,9.762]
[1772650695433,3.87693851,92.208,92.163,9.761]
[1772650695739,3.87693851,92.208,92.103,19.85855385]
[1772650695740,3.87693851,92.208,92.104,3.83156483]
[1772650696533,3.87693851,92.208,92.145,3.83156483]
[1772650697129,3.87693851,92.208,92.095,19.85855385]
[1772650697130,3.87693851,92.203,92.104,5.93313077]
[1772650697730,7.9676695,92.214,92.114,5.93313077]
[1772650698137,7.9676695,92.214,92.116,5.83031335]
[1772650698138,9.76,92.175,92.116,5.83031335]
[1772650699039,9.76,92.175,92.128,9.765]
[1772650700542,9.76,92.175,92.12,5.71526924]
[1772650701139,9.759,92.185,92.123,5.7154191]
[1772650701543,7.97735345,92.238,92.123,5.7154191]
[1772650701742,7.97735345,92.238,92.143,5.7154191]
[1772650703440,9.757,92.205,92.149,5.83035086]
[1772650705347,19.507,92.239,92.101,19.536]
[1772650705348,10.03435746,92.277,92.16,5.83433126]
[1772650705647,151.678,92.269,92.16,5.83433126]
[1772650705846,7.97362217,92.268,92.16,5.83433126]
[1772650707246,10.03435746,92.265,92.16,5.83433126]
[1772650707446,9.757,92.204,92.16,5.83433126]
[1772650712250,9.757,92.204,92.161,5.84714262]
[1772650713252,7.97362217,92.258,92.147,5.84714262]
[1772650713253,188.22065979,92.258,92.147,5.84714262]
[1772650713448,7.97362217,92.257,92.147,5.84714262]
[1772650714152,9.757,92.206,92.16,5.86634611]
[1772650714451,151.706,92.251,92.114,5.86634611]
[1772650714653,7.97362217,92.25,92.114,5.86634611]
[1772650715345,9.759,92.187,92.136,9.764]
[1772650715552,9.759,92.187,92.137,5.86634611]
[1772650716755,9.759,92.187,92.14,5.83702661]
[1772650722461,10.03435746,92.227,92.114,5.85394072]
[1772650722661,10.03435746,92.217,92.114,5.85394072]
[1772650722849,7.97362217,92.216,92.114,5.85394072]